bitfinex-derivatives/quotes_SOLF0:USTF0_20241120
["timestamp","ask_amount","ask_price","bid_price","bid_amount"]
[1732077460899,5.76,233.26,233.14,2.1421]
[1732077460900,2.1418,233.18,233.14,2.1421]
[1732077461514,2.1418,233.18,233.13,2.1422]
[1732077462019,5.76,233.26,233.05,2.65738092]
[1732077462208,2.1418,233.18,233.12,2.1423]
[1732077462795,5.76,233.26,233.1,2.1424]
[1732077462998,2.1418,233.18,233.06,2.24]
[1732077463895,2.1418,233.18,233.1,2.1424]
[1732077464195,2.1419,233.17,233.1,2.1424]
[1732077468336,2.1417,233.19,233.06,2.24]
[1732077468496,5.76,233.26,233.06,2.24]
[1732077469300,3.52,233.26,233.06,2.24]
[1732077470208,2.1414,233.22,233.15,2.142]
[1732077470396,2.1414,233.22,233.16,2.24]
[1732077472508,2.1416,233.2,233.16,2.24]
[1732077473505,3.52,233.26,233.16,2.24]
[1732077473706,2.1415,233.22,233.16,2.24]
[1732077473901,3.52,233.26,233.16,2.24]
[1732077474604,2.1413,233.23,233.16,2.24]
[1732077474891,3.52,233.26,233.16,2.24]
[1732077475307,2.1415,233.22,233.16,2.24]
[1732077476306,2.1415,233.21,233.16,2.24]
[1732077478212,2.1415,233.21,233.15,2.142]
[1732077478605,2.1415,233.21,233.13,2.24]
[1732077478606,2.1419,233.17,233.04,0.20661]
[1732077478807,2.1419,233.17,233.05,2.24]
[1732077480010,2.1419,233.17,233.1,2.1424]
[1732077480209,4.5276,233.27,233.11,2.24]
[1732077480708,3.36,233.26,233.11,2.24]
[1732077481210,2.1418,233.18,233.11,4.3824]
[1732077481708,3.36,233.26,233.11,4.3824]
[1732077482112,2.1418,233.18,233.11,4.3824]
[1732077482911,2.1419,233.17,233.11,4.3824]
[1732077483211,2.1419,233.17,233.11,2.1424]
[1732077483410,2.1419,233.17,233.1,4.3825]
[1732077483811,2.1419,233.16,233.1,4.3825]
[1732077484011,2.24,233.23,233.1,4.3825]
[1732077484210,3.36,233.26,233.15,2.142]
[1732077484405,3.36,233.26,233.1,2.24]
[1732077485013,2.1415,233.22,233.13,2.1422]
[1732077485206,3.36,233.26,233.13,2.1422]
[1732077485601,2.1414,233.23,233.13,2.1422]
[1732077485806,3.36,233.26,233.13,2.1422]
[1732077486212,2.1414,233.23,233.13,2.1422]
[1732077486410,3.36,233.26,233.14,2.1421]
[1732077486709,2.1418,233.18,233.1,2.24]
[1732077486919,3.36,233.26,233.12,2.1422]
[1732077487208,3.36,233.26,233.1,2.24]
[1732077487409,2.1418,233.18,233.1,2.24]
[1732077487811,2.1418,233.18,233.11,2.1423]
[1732077488009,2.1418,233.18,233.1,2.24]
[1732077489312,2.1418,233.18,233.1,4.3824]
[1732077490215,2.1419,233.17,233.1,4.3824]
[1732077490415,2.1419,233.17,233.11,2.1424]
[1732077490809,2.1418,233.18,233.11,2.1424]
[1732077492026,2.1418,233.18,233.12,2.1423]
[1732077492214,2.1418,233.18,233.1,2.24]
[1732077493211,3.36,233.26,233.02,5.95386835]
[1732077493459,16.21,233.26,233.03,5.33918377]
[1732077493647,16.21,233.26,233.03,2.24]
[1732077493816,16.21,233.26,233.03,9.17138246]
[1732077494013,16.21,233.26,233.07,2.1428]
[1732077494014,2.1422,233.14,233.07,2.1428]
[1732077495326,2.1422,233.13,233.07,2.1428]
[1732077496720,2.1422,233.13,233.03,2.24]
[1732077496721,2.1422,233.13,233.05,2.1429]
[1732077496925,2.1422,233.13,233.03,2.24]
[1732077498327,2.1422,233.13,233.06,2.1429]
[1732077498628,2.1422,233.13,233.03,2.24]
[1732077499429,2.1422,233.13,233.04,2.143]
[1732077500015,2.1423,233.12,233.04,2.143]
[1732077501828,2.1423,233.12,233.03,2.24]
[1732077502024,2.1423,233.12,233.05,2.1429]
[1732077502629,2.1422,233.14,233.07,2.1427]
[1732077502834,4.6543,233.19,233.03,2.24]
[1732077503829,2.142,233.15,233.07,2.1427]
[1732077504036,2.142,233.15,233.03,2.24]
[1732077506379,2.142,233.15,233.07,2.1427]
[1732077506936,4.6543,233.19,232.98,0.4677]
[1732077507137,4.6543,233.19,233.05,2.1429]
[1732077507337,4.6543,233.19,233.06,2.24]
[1732077507936,2.1424,233.12,233.06,2.24]
[1732077509537,3.38,233.11,233.06,4.3828]
[1732077511439,3.38,233.11,233.07,2.1427]
[1732077513143,3.38,233.11,233.06,2.24]
[1732077513742,3.38,233.11,233.09,2.1425]
[1732077513939,3.38,233.11,233.06,2.24]
[1732077514448,3.38,233.11,233.09,2.1426]
[1732077515052,3.38,233.11,233.06,2.24]
[1732077515444,3.38,233.11,233.09,2.1426]
[1732077515644,3.38,233.11,233.06,2.24]
[1732077516209,3.38,233.11,233.07,2.1427]
[1732077516354,3.38,233.11,233.06,2.24]
[1732077516745,3.38,233.11,233.07,2.1427]
[1732077516944,3.38,233.11,233.06,2.24]
[1732077517745,3.38,233.11,233.08,2.1426]
[1732077519952,3.38,233.11,233.06,2.24]
[1732077521454,3.38,233.11,233.1,2.1425]
[1732077524456,3.38,233.11,233.09,2.1426]
[1732077527351,3.38,233.11,233.02,0.2508]
[1732077527659,3.1367,233.19,233.03,4.90290572]
[1732077527857,3.1367,233.19,233.03,2.24]
[1732077528057,2.1423,233.13,233.05,2.1429]
[1732077528856,2.1424,233.12,233.04,2.143]
[1732077529258,2.72,233.11,233.04,2.143]
[1732077529798,2.72,233.11,233.03,2.1431]
[1732077529799,2.1425,233.1,233.03,2.1431]
[1732077529952,2.1425,233.1,233.04,2.24]
[1732077533871,2.1425,233.1,233.03,2.1431]
[1732077534163,4.2567,233.11,232.96,2.1437]
[1732077534359,1.5091,233.09,232.96,2.24]
[1732077534861,2.24,233.08,232.96,2.24]
[1732077535366,2.1433,233.01,232.96,2.24]
[1732077536160,2.143,233.05,232.97,2.1437]
[1732077536363,1.6343,233.07,232.97,2.1437]
[1732077537363,1.6343,233.07,232.96,2.24]
[1732077537562,1.6343,233.07,232.96,4.3838]
[1732077538367,1.6343,233.07,232.97,2.1436]
[1732077539364,2.143,233.05,232.97,2.1436]
[1732077539676,2.143,233.05,232.98,2.1436]
[1732077540362,3.7772,233.07,232.99,2.1435]
[1732077540774,1.6343,233.07,232.99,2.1435]
[1732077541161,2.1429,233.06,232.99,2.1435]
[1732077543072,2.143,233.05,232.96,2.24]
[1732077544386,2.143,233.05,232.98,2.1436]
[1732077545867,3.49,233.04,232.98,2.1436]
[1732077546674,3.49,233.04,232.96,2.24]
[1732077548083,3.49,233.04,232.98,2.1436]
[1732077548264,3.49,233.04,232.96,2.24]
[1732077548667,3.49,233.04,232.98,2.1436]
[1732077551268,3.49,233.04,232.99,2.1435]
[1732077551467,3.49,233.04,232.96,2.24]
[1732077551974,3.49,233.04,233.03,2.1431]
[1732077552171,3.0162,233.04,233.03,4.3831]
[1732077552366,2.7611,233.04,233.03,4.3831]
[1732077557977,3.7243,233.15,233.03,2.24]
[1732077558173,3.7243,233.15,233.06,2.1428]
[1732077558474,1.5749,233.14,233.06,2.1428]
[1732077558874,1.5749,233.14,233.07,2.1427]
[1732077559473,1.5409,233.2,233.03,2.24]
[1732077559781,1.5409,233.2,233.04,5.73534374]
[1732077559974,1.5409,233.2,233.04,2.64904227]
[1732077560178,1.5409,233.2,233.05,2.24]
[1732077560375,2.75,233.19,233.06,2.24]
[1732077560576,2.75,233.19,233.07,2.24]
[1732077561377,2.1419,233.17,233.08,2.1427]
[1732077561776,1.5433,233.16,233.08,2.1427]
[1732077563078,1.5433,233.16,233.09,2.1426]
[1732077564077,2.75,233.19,233.07,2.24]
[1732077564779,2.75,233.19,233.17,2.1418]
[1732077565081,2.75,233.19,233.18,2.24]
[1732077566281,2.75,233.19,233.18,4.3818]
[1732077574795,2.75,233.19,233.18,2.1418]
[1732077574990,2.75,233.19,233.18,4.3818]
[1732077579888,2.75,233.19,233.18,2.1418]
[1732077580098,2.75,233.19,233.18,4.3818]
[1732077583722,2.75,233.19,233.18,2.24]
[1732077585402,2.75,233.19,233.18,4.3818]
[1732077590899,2.75,233.19,233.18,2.24]
[1732077594396,2.75,233.19,233.18,4.3818]
[1732077597105,2.75,233.19,233.18,2.24]
[1732077602103,2.75,233.19,233.12,2.1423]
[1732077602306,1.6329,233.23,233.13,2.24]
[1732077603202,3.7742,233.23,233.13,2.24]
[1732077603609,3.7742,233.23,233.08,0.22174]
[1732077603610,1.6329,233.23,233.08,0.22174]
[1732077603809,1.6329,233.23,233.09,2.24]
[1732077604004,2.73,233.22,233.09,2.24]
[1732077604203,1.5858,233.21,233.1,2.1425]
[1732077604503,1.5858,233.21,233.11,2.24]
[1732077604707,1.6052,233.2,233.11,2.24]
[1732077605507,2.1418,233.18,233.12,2.1423]
[1732077608110,2.1418,233.18,233.08,0.22174]
[1732077608111,2.14665535,233.18,233.08,0.22174]
[1732077608308,2.24,233.18,233.04,2.24]
[1732077608614,2.1423,233.12,233.06,2.1428]
[1732077608811,3.0765,233.11,233.06,2.1428]
[1732077611306,3.0765,233.11,233.04,2.24]
[1732077611707,1.4755,233.11,233.04,2.24]
[1732077613211,1.4755,233.11,233.07,2.1427]
[1732077617413,1.4755,233.11,233.04,2.24]
[1732077617711,1.5899,233.15,233.04,2.24]
[1732077618714,1.5899,233.15,233.07,2.1427]
[1732077619025,1.5899,233.15,233.04,2.24]
[1732077620312,1.5899,233.15,233.09,2.1425]
[1732077620512,1.5899,233.15,233.1,2.24]
[1732077621015,1.5899,233.15,233.1,4.3825]
[1732077622018,1.5899,233.15,233.1,2.24]
[1732077623719,1.5899,233.15,233.1,4.3825]
[1732077624222,1.5899,233.15,233.11,2.1424]
[1732077624421,1.5899,233.15,233.1,2.24]
[1732077625219,1.5899,233.15,233.12,2.1423]
[1732077625925,1.5899,233.15,233.1,2.24]
[1732077625926,1.5899,233.15,233.11,2.1424]
[1732077629829,2.62,233.14,233.11,2.1424]
[1732077630525,2.62,233.14,233.12,2.1423]
[1732077630825,2.62,233.14,233.1,2.24]
[1732077632324,2.62,233.14,233.12,2.1423]
[1732077636124,2.62,233.14,233.13,2.1422]
[1732077637933,2.62,233.14,233.04,2.65208819]
[1732077638226,2.62,233.14,233.05,2.24]
[1732077639736,2.62,233.14,233.12,2.1423]
[1732077642734,1.5763,233.2,233.12,2.1423]
[1732077644227,3.7179,233.2,233.12,2.1423]
[1732077644426,2.28,233.19,233.11,2.24]
[1732077644630,2.28,233.19,233.13,2.1422]
[1732077644833,2.28,233.19,233.11,2.24]
[1732077646727,2.28,233.19,233.18,2.1418]
[1732077646930,2.28,233.19,233.18,4.3818]
[1732077651137,2.28,233.19,233.18,2.24]
[1732077651339,2.28,233.19,233.16,2.1419]
[1732077651540,2.28,233.19,233.17,2.22]
[1732077656349,2.28,233.19,233.16,2.1419]
[1732077656742,2.28,233.19,233.15,2.22]
[1732077657245,2.28,233.19,233.14,2.142]
[1732077658348,2.28,233.19,233.13,2.22]
[1732077658845,2.28,233.19,233.13,4.3622]
[1732077659240,2.28,233.19,233.13,2.22]
[1732077660241,2.28,233.19,233.14,2.1421]
[1732077661246,2.28,233.19,233.13,2.22]
[1732077661444,4.4217,233.19,233.13,2.22]
[1732077661647,4.4217,233.19,233.12,2.1422]
[1732077662747,2.28,233.19,233.13,2.1422]
[1732077663359,4.4217,233.19,233.13,2.1422]
[1732077664848,2.1418,233.18,233.11,2.1423]
[1732077665050,2.28,233.19,233.09,2.22]
[1732077665450,4.4217,233.19,233.12,2.1423]
[1732077665751,2.28,233.19,233.09,2.22]
[1732077665946,2.11174687,233.18,233.07,2.22]
[1732077666949,2.1419,233.16,233.09,2.1425]
[1732077667454,2.11174687,233.18,233.09,2.1425]
[1732077667653,2.1421,233.15,233.09,2.1425]
[1732077668052,2.1422,233.14,233.08,2.1427]
[1732077668253,2.28,233.19,233.08,2.1427]
[1732077668254,4.6925,233.13,233.08,2.1427]
[1732077668650,4.6925,233.13,233.03,2.22]
[1732077668851,4.6925,233.13,233.09,2.1426]
[1732077669654,4.6925,233.13,233.04,2.22]
[1732077669953,4.6925,233.13,233.03,2.22]
[1732077670356,2.1423,233.12,233.06,2.1429]
[1732077670652,2.1423,233.12,233.03,2.22]
[1732077671256,2.48,233.11,233.03,2.22]
[1732077672251,2.48,233.11,233.05,2.1429]
[1732077675367,6.7838412,233.1,233.05,2.1429]
[1732077677774,2.48,233.11,233.07,2.1428]
[1732077677973,9.2638412,233.11,233.07,2.1428]
[1732077678469,2.48,233.11,233.07,6.7838412]
[1732077679280,2.48,233.11,233.09,2.1426]
[1732077679664,2.48,233.11,233.09,8.9264412]
[1732077679913,2.48,233.11,233.09,2.1426]
[1732077688072,2.48,233.11,233.08,4.3627]
[1732077690772,2.48,233.11,233.09,2.1426]
[1732077694481,2.48,233.11,233.08,2.22]
[1732077694482,2.48,233.11,233.08,4.3627]
[1732077696687,6.7838412,233.1,232.98,4.24613476]
[1732077696988,6.7838412,233.1,232.97,12.19835425]
[1732077696989,6.7838412,233.1,233.03,6.7838412]
[1732077698091,9.2638412,233.11,233.03,6.7838412]
[1732077698306,9.2638412,233.11,233.04,2.22]
[1732077698989,9.2638412,233.11,233.06,2.1428]
[1732077700591,6.7838412,233.09,233.04,2.143]
[1732077700793,6.7838412,233.09,233.05,2.22]
[1732077701091,6.7838412,233.09,233.05,4.3629]
[1732077703077,2.68,233.08,233.05,4.3629]
[1732077703794,6.7838412,233.15,233.07,6.7838412]
[1732077704197,6.7838412,233.13,233.07,6.7838412]
[1732077705291,6.7838412,233.13,233.08,2.1427]
[1732077710399,5.1904,233.16,233.09,2.1426]
[1732077710592,6.7838412,233.15,233.09,2.1426]
[1732077711092,6.7838412,233.15,233.08,2.1427]
[1732077712310,6.7838412,233.15,233.09,4.3626]
[1732077716253,3.0484,233.16,233.1,2.1424]
[1732077716393,6.7838412,233.15,233.1,2.1424]
[1732077719519,6.7838412,233.13,233.09,2.22]
[1732077720424,2.142,233.15,233.1,2.1425]
[1732077720425,6.7838412,233.15,233.1,2.1425]
[1732077724604,3.0484,233.16,233.13,6.7838412]
[1732077724924,2.22,233.31,233.15,6.7838412]
[1732077725102,6.7838412,233.24,233.17,6.7838412]
[1732077725510,2.1411,233.25,233.19,2.1417]
[1732077725702,4.5111,233.29,233.2,2.22]
[1732077726009,6.7838412,233.26,233.2,2.22]
[1732077727307,6.7838412,233.26,233.2,4.3616]
[1732077728006,8.9248412,233.26,233.2,4.3616]
[1732077732213,6.7838412,233.28,233.22,2.1413]
[1732077732615,6.7838412,233.24,233.2,2.22]
[1732077732811,6.7838412,233.22,233.17,2.22]
[1732077733511,6.7838412,233.22,233.17,4.3618]
[1732077734813,6.7838412,233.2,233.17,2.22]
[1732077735508,8.3945412,233.21,233.17,2.22]
[1732077738316,6.7838412,233.19,233.12,2.1423]
[1732077738534,1.6198,233.2,233.12,4.3623]
[1732077738720,6.7838412,233.17,233.12,2.22]
[1732077740322,6.7838412,233.17,233.1,2.22]
[1732077740621,6.7838412,233.17,232.95,237.23478337]
[1732077740622,6.7838412,233.13,233.05,2.22]
[1732077740813,6.7838412,233.13,232.96,4.2391005]
[1732077740814,3.1719,233.2,232.98,2.65016743]
[1732077741018,6.7838412,233.13,233.07,2.1428]
[1732077741217,6.7838412,233.13,233.07,8.9266412]
[1732077741818,6.7838412,233.13,233.07,2.1428]
[1732077742020,6.7838412,233.13,233.07,8.9266412]
[1732077743328,2.22,233.26,233.1,6.7838412]
[1732077743524,6.7838412,233.16,233.1,6.7838412]
[1732077743725,6.7838412,233.16,233.11,2.22]
[1732077743922,6.7838412,233.14,233.11,2.22]
[1732077745922,8.9258412,233.16,233.11,2.22]
[1732077747427,2.9567,233.2,233.13,2.1422]
[1732077747635,6.7838412,233.17,233.13,2.1422]
[1732077748623,8.9255412,233.19,233.13,2.1422]
[1732077755929,2.9567,233.2,233.12,6.7838412]
[1732077756129,6.7838412,233.19,233.12,6.7838412]
[1732077756437,6.7838412,233.17,233.11,2.22]
[1732077756637,6.7838412,233.17,233.12,2.1422]
[1732077766346,6.7838412,233.17,233.11,9.0038412]
[1732077766545,6.7838412,233.17,233.12,2.1423]
[1732077768147,6.7838412,233.17,233.11,2.22]
[1732077768338,6.7838412,233.15,233.08,2.22]
[1732077768542,6.7838412,233.13,233.08,9.0038412]
[1732077770245,6.7838412,233.13,233.08,11.1465412]
[1732077770744,8.9258412,233.15,233.08,9.0038412]
[1732077773251,8.9258412,233.15,233.08,11.1464412]
[1732077773548,6.7838412,233.13,232.99,0.2294]
[1732077773749,6.7838412,233.09,233.02,6.7838412]
[1732077773990,6.7838412,233.09,233.03,2.1431]
[1732077774143,6.7838412,233.07,233.02,9.0038412]
[1732077774549,6.7838412,233.07,232.99,2.22]
[1732077774747,6.7838412,233.05,232.99,9.0038412]
[1732077774951,6.7838412,233.05,232.97,2.22]
[1732077775147,6.7838412,233.03,232.96,2.1437]
[1732077775352,6.7838412,233.03,232.96,4.3637]
[1732077775546,1.4913,233.04,232.89,9.99372255]
[1732077775547,6.7838412,232.99,232.89,9.99372255]
[1732077775752,1.4913,233.04,232.84,47.57666698]
[1732077775753,6.7838412,232.97,232.9,6.7838412]
[1732077775944,6.7838412,232.95,232.88,2.22]
[1732077776146,6.7838412,232.95,232.89,6.7838412]
[1732077776552,2.1437,232.97,232.89,2.1444]
[1732077776750,6.7838412,232.96,232.89,8.9282412]
[1732077777453,6.7838412,232.96,232.91,2.1442]
[1732077778054,6.7838412,232.96,232.92,2.1441]
[1732077778548,1.5602,233.02,232.94,2.144]
[1732077778549,6.7838412,233.0,232.94,2.144]
[1732077780715,6.7838412,233.0,232.95,2.1438]
[1732077780848,6.7838412,233.0,232.93,9.0038412]
[1732077781350,6.7838412,233.01,232.97,2.1437]
[1732077781654,6.7838412,233.01,232.95,6.7838412]
[1732077782751,8.9271412,233.01,232.94,2.1439]
[1732077782956,8.9271412,233.01,232.94,8.9277412]
[1732077783760,8.9271412,233.01,232.94,6.7838412]
[1732077785262,6.7838412,233.01,232.94,6.7838412]
[1732077785559,1.5602,233.02,232.96,6.7838412]
[1732077786654,3.7034,233.02,232.96,6.7838412]
[1732077787156,6.7838412,233.01,232.94,6.7838412]
[1732077787363,6.7838412,232.99,232.93,4.364]
[1732077792498,2.1434,233.0,232.94,6.7838412]
[1732077792662,3.7035,233.02,232.95,2.1439]
[1732077792863,10.4873412,233.02,232.95,2.1439]
[1732077793566,10.4873412,233.02,232.96,2.1438]
[1732077793964,8.3440412,233.02,232.96,6.7838412]
[1732077794977,8.3440412,233.02,232.97,2.1437]
[1732077797271,10.4873412,233.02,232.97,2.1437]
[1732077800171,1.5602,233.02,232.98,2.1435]
[1732077800370,1.5602,233.02,232.96,6.7838412]
[1732077800965,1.5602,233.02,232.98,2.1435]
[1732077801463,1.5602,233.02,232.96,6.7838412]
[1732077801666,1.5602,233.02,232.95,2.1438]
[1732077801866,1.5602,233.02,232.95,6.7838412]
[1732077802561,1.5602,233.02,232.93,2.22]
[1732077802562,1.5602,233.02,232.97,2.1436]
[1732077803669,1.5602,233.02,232.96,8.9276412]
[1732077803670,3.7034,233.02,232.96,8.9276412]
[1732077805970,3.7034,233.02,232.96,2.1438]
[1732077806576,1.5602,233.02,232.96,2.1438]
[1732077806777,8.3440412,233.02,232.96,2.1438]
[1732077808975,8.3440412,233.02,232.96,8.9276412]
[1732077810374,1.5602,233.02,232.96,8.9276412]
[1732077811771,1.5602,233.02,232.96,2.1438]
[1732077812071,1.5602,233.02,232.96,8.9276412]
[1732077812674,3.7034,233.02,232.96,8.9276412]
[1732077814882,1.5602,233.02,232.97,2.1437]
[1732077818998,8.3440412,233.02,232.97,2.1437]
[1732077819106,2.1436,232.99,232.92,9.1038412]
[1732077819352,8.3440412,233.02,232.94,6.7838412]
[1732077819489,3.7035,233.02,232.96,6.7838412]
[1732077819679,3.7035,233.02,232.95,2.1438]
[1732077819680,6.7838412,232.97,232.9,6.7838412]
[1732077819880,6.7838412,232.96,232.88,11.72613351]
[1732077820484,6.7838412,232.96,232.9,6.7838412]
[1732077821287,6.7838412,232.96,232.92,2.1441]
[1732077824384,2.1437,232.98,232.92,2.1441]
[1732077824385,8.9275412,232.98,232.92,2.1441]
[1732077827684,6.7838412,232.96,232.92,2.1441]
[1732077831384,8.9277412,232.96,232.91,2.1442]
[1732077831987,8.9277412,232.96,232.9,2.1443]
[1732077831988,2.144,232.95,232.9,2.1443]
[1732077833781,2.144,232.95,232.88,6.7838412]
[1732077833984,2.144,232.95,232.89,2.1444]
[1732077836592,6.7838412,232.96,232.88,6.7838412]
[1732077836784,2.144,232.94,232.88,8.9283412]
[1732077836984,3.8802,233.02,232.88,6.7838412]
[1732077837196,6.7838412,232.96,232.91,2.1442]
[1732077837688,8.9276412,232.96,232.91,2.1442]
[1732077839995,2.1439,232.95,232.91,2.1442]
[1732077840189,2.1439,232.95,232.9,2.1443]
[1732077840994,2.144,232.94,232.9,2.1443]
[1732077845596,8.9277412,232.96,232.91,2.1442]
[1732077848601,2.1439,232.95,232.91,2.1442]
[1732077849495,2.1441,232.93,232.88,9.1038412]
[1732077851295,2.1441,232.93,232.89,2.1444]
[1732077852202,3.8802,233.02,232.9,6.7838412]
[1732077852402,2.144,232.95,232.9,6.7838412]
[1732077852796,2.144,232.95,232.89,2.1444]
[1732077854357,2.144,232.94,232.89,2.1444]
[1732077858406,2.1439,232.95,232.9,2.1443]
[1732077858608,6.7838412,232.96,232.9,2.1443]
[1732077859304,8.3440412,233.02,232.94,6.7838412]
[1732077860404,8.3440412,233.02,232.94,8.9277412]
[1732077860405,2.1436,232.99,232.94,8.9277412]
[1732077861402,2.1436,232.99,232.95,2.1438]
[1732077861815,2.1436,232.99,232.94,6.7838412]
[1732077862910,2.1436,232.99,232.94,8.9278412]
[1732077864405,6.7838412,232.97,232.82,7.30330571]
[1732077864606,6.7838412,232.95,232.88,6.7838412]
[1732077864909,6.7838412,232.95,232.89,6.7838412]
[1732077865110,6.7838412,232.95,232.83,2.32]
[1732077865307,6.7838412,232.95,232.88,6.7838412]
[1732077866209,2.1441,232.94,232.88,6.7838412]
[1732077866809,1.611,232.99,232.9,6.7838412]
[1732077866810,2.1439,232.96,232.9,6.7838412]
[1732077867213,6.7838412,232.97,232.9,6.7838412]
[1732077868309,2.1439,232.95,232.9,6.7838412]
[1732077870215,8.9279412,232.93,232.89,2.22]
[1732077870613,8.9279412,232.93,232.87,4.3646]
[1732077872518,6.7838412,232.93,232.87,4.3646]
[1732077873920,6.7838412,232.93,232.87,2.22]
[1732077874318,6.7838412,232.91,232.78,0.28281]
[1732077874520,6.7838412,232.91,232.83,6.7838412]
[1732077875221,6.7838412,232.91,232.83,8.9287412]
[1732077875222,2.1444,232.9,232.83,8.9287412]
[1732077875415,2.1444,232.9,232.83,6.7838412]
[1732077876325,2.1444,232.9,232.84,2.1449]
[1732077877823,2.1445,232.88,232.82,2.1451]
[1732077878018,1.5061,232.92,232.81,2.22]
[1732077878223,6.7838412,232.87,232.81,2.22]
[1732077878615,6.7838412,232.87,232.81,4.3651]
[1732077878823,6.7838412,232.87,232.81,2.1451]
[1732077879422,2.1447,232.86,232.8,2.22]
[1732077879920,8.9289412,232.82,232.78,0.28281]
[1732077881325,8.9291412,232.8,232.78,0.28281]
[1732077882427,1.5234,232.84,232.78,0.28281]
[1732077882428,8.9289412,232.82,232.78,0.28281]
[1732077882825,6.7838412,232.82,232.78,0.28281]
[1732077883428,8.3072412,232.84,232.78,0.28281]
[1732077883626,1.5234,232.84,232.78,0.28281]
[1732077883821,1.5234,232.84,232.8,2.1452]
[1732077884056,1.5234,232.84,232.79,6.7838412]
[1732077885230,1.5234,232.84,232.81,2.1452]
[1732077885833,1.5234,232.84,232.79,8.9291412]
[1732077886933,1.5234,232.84,232.8,2.1452]
[1732077889326,1.5234,232.84,232.81,6.7838412]
[1732077890145,1.5234,232.84,232.78,0.28281]
[1732077890347,1.5234,232.84,232.79,6.7838412]
[1732077890845,1.5234,232.84,232.79,8.9291412]
[1732077891543,3.6683,232.84,232.77,2.1454]
[1732077891735,3.6683,232.84,232.79,6.7838412]
[1732077895150,3.6683,232.84,232.78,2.1454]
[1732077895348,3.6683,232.84,232.79,6.7838412]
[1732077896147,2.1451,232.83,232.77,2.22]
[1732077897349,2.1451,232.83,232.77,4.3655]
[1732077899957,2.1451,232.83,232.77,2.1455]
[1732077900750,2.1451,232.82,232.77,2.1455]
[1732077901254,8.3072412,232.84,232.7,0.36878]
[1732077901449,2.1453,232.8,232.74,8.9296412]
[1732077904854,1.5516,232.83,232.76,6.7838412]
[1732077905154,1.5516,232.83,232.78,6.7838412]
[1732077905746,1.5234,232.84,232.8,6.7838412]
[1732077905977,1.5234,232.84,232.82,6.7838412]
[1732077906202,1.5281,232.85,232.82,6.7838412]
[1732077906375,1.5281,232.85,232.82,8.9289412]
[1732077906553,1.5281,232.85,232.82,6.7838412]
[1732077906961,1.5281,232.85,232.78,2.1454]
[1732077907159,1.5281,232.85,232.76,2.22]
[1732077907160,1.5281,232.85,232.8,6.7838412]
[1732077908152,1.5281,232.85,232.82,6.7838412]
[1732077908553,10.5288412,232.91,232.82,6.7838412]
[1732077908855,3.0177,232.91,232.84,6.7838412]
[1732077909756,9.8015412,232.91,232.84,6.7838412]
[1732077910351,3.0177,232.91,232.86,6.7838412]
[1732077910554,2.1435,232.99,232.9,6.7838412]
[1732077910861,6.7838412,233.0,232.92,6.7838412]
[1732077913465,2.1435,232.99,232.92,8.9279412]
[1732077914862,11.3741412,233.04,232.97,2.1437]
[1732077915254,11.3741412,233.04,232.96,6.7838412]
[1732077915462,8.9270412,233.02,232.96,8.9276412]
[1732077917157,8.9275412,232.98,232.91,9.0038412]
[1732077917563,8.9275412,232.98,232.91,2.22]
[1732077917760,8.9276412,232.96,232.86,2.1446]
[1732077917966,8.9276412,232.96,232.89,6.7838412]
[1732077918170,6.7838412,232.96,232.89,6.7838412]